[Event "Mitropa Cup Women 2019"]
[Site "Radenci"]
[Date "2019.05.28"]
[Round "2.1"]
[White "Ragger, Anna-Christina"]
[Black "Navrotescu, Andreea-Cristiana"]
[Result "1/2-1/2"]
[ECO "C03"]
[WhiteElo "2272"]
[BlackElo "2233"]
[Annotator "ChessBase"]
[PlyCount "113"]
[EventDate "2019.05.27"]
[EventType "team-tourn"]
[EventCountry "SLO"]
[SourceTitle "playchess.com"]
[Source "ChessBase"]
[SourceQuality "1"]
[TimeControl "40/5400+30:1800+30"]

1. e4 {[%emt 0:00:00]} e6 {[%emt 0:00:00]} 2. d4 {[%emt 0:00:00]} d5 {[%emt 0:00:00]} 3. Nd2 {[%emt 0:00:00]} h6 {[%emt 0:00:00]} 4. c3 {[%emt 0:00:40]} c5 {[%emt 0:00:00]} 5. exd5 {[%emt 0:01:01]} exd5 {[%emt 0:00:06]} 6. Bb5+ {[%emt 0:00:48]} Nc6 {[%emt 0:00:28]} 7. Ngf3 {[%emt 0:02:54]} Qe7+ {[%emt 0:00:20]} 8. Qe2 {[%emt 0:00:27]} Qxe2+ {[%emt 0:00:07]} 9. Kxe2 {[%emt 0:03:44]} a6 {[%emt 0:01:23]} 10. Bxc6+ {[%emt 0:11:15]} bxc6 {[%emt 0:00:27]} 11. Re1 {[%emt 0:07:29]} cxd4 {[%emt 0:02:05]} 12. Kf1+ {[%emt 0:00:26]} Be6 {[%emt 0:20:31]} 13. Nxd4 {[%emt 0:00:28]} Kd7 {[%emt 0:00:02]} 14. N2f3 {[%emt 0:07:31]} Bd6 {[%emt 0:00:48]} 15. Ne5+ {[%emt 0:00:27]} Bxe5 {[%emt 0:00:43]} 16. Rxe5 {[%emt 0:00:04]} Ne7 {[%emt 0:03:20]} 17. b3 {[%emt 0:06:46]} g5 {[%emt 0:11:29]} 18. Ba3 {[%emt 0:04:33]} Ng6 {[%emt 0:00:14]} 19. Re3 {[%emt 0:00:39]} a5 {[%emt 0:03:38]} 20. Bc5 {[%emt 0:04:11]} a4 {[%emt 0:00:21]} 21. bxa4 {[%emt 0:05:17]} Ra5 {[%emt 0:05:47]} 22. Bb4 {[%emt 0:00:29]} Rxa4 {[%emt 0:04:22]} 23. a3 {[%emt 0:02:47]} Re8 {[%emt 0:03:54]} 24. Nb3 {[%emt 0:00:53]} Raa8 {[%emt 0:00:36]} 25. Nc5+ {[%emt 0:08:39]} Kc7 {[%emt 0:00:13]} 26. a4 {[%emt 0:00:21]} Bg4 {[%emt 0:09:19]} 27. Rxe8 {[%emt 0:05:32]} Rxe8 {[%emt 0:00:53]} 28. f3 {[%emt 0:00:07]} Bf5 {[%emt 0:01:59]} 29. a5 {[%emt 0:00:24]} Ne5 {[%emt 0:05:06]} 30. a6 {[%emt 0:04:56]} Nc4 {[%emt 0:10:50]} 31. g4 {[%emt 0:02:20]} Bg6 {[%emt 0:01:40]} 32. Kf2 {[%emt 0:00:23]} Kb6 {[%emt 0:07:23]} 33. Nb3 {[%emt 0:07:25]} Bc2 {[%emt 0:02:14]} 34. Nc5 {[%emt 0:05:27]} Bg6 {[%emt 0:00:44]} 35. Nb3 {[%emt 0:06:53]} Bc2 {[%emt 0:00:01]} 36. Bc5+ {[%emt 0:00:33]} Kb5 {[%emt 0:00:01]} 37. Nd4+ {[%emt 0:00:34]} Kxc5 {[%emt 0:00:01]} 38. Nxc2 {[%emt 0:00:04]} Kb6 {[%emt 0:01:24]} 39. Nd4 {[%emt 0:00:10]} Ra8 {[%emt 0:02:29]} 40. Nf5 {[%emt 0:00:00]} Rxa6 {[%emt 0:00:00]} 41. Rxa6+ {[%emt 0:03:13]} Kxa6 {[%emt 0:00:58]} 42. Nxh6 {[%emt 0:00:05]} Nd6 {[%emt 0:06:39]} 43. f4 {[%emt 0:09:52]} gxf4 {[%emt 0:09:15]} 44. h4 {[%emt 0:03:23]} Kb5 {[%emt 0:00:14]} 45. h5 {[%emt 0:02:17]} Kc4 {[%emt 0:03:47]} 46. Nf5 {[%emt 0:01:37]} Ne4+ {[%emt 0:00:32]} 47. Kf3 {[%emt 0:00:11]} Kxc3 {[%emt 0:01:23]} 48. Ne7 {[%emt 0:02:54]} Ng5+ {[%emt 0:04:07]} 49. Kxf4 {[%emt 0:00:38]} Ne6+ {[%emt 0:00:04]} 50. Ke5 {[%emt 0:05:10]} d4 {[%emt 0:00:12]} 51. Nf5 {[%emt 0:00:07]} d3 {[%emt 0:03:56]} 52. Ne3 {[%emt 0:00:07]} d2 {[%emt 0:04:57]} 53. h6 {[%emt 0:00:53]} Kd3 {[%emt 0:00:31]} 54. Nd1 {[%emt 0:00:20]} Kc2 {[%emt 0:03:18]} 55. Ne3+ {[%emt 0:01:04]} Kd3 {[%emt 0:00:26]} 56. Nd1 {[%emt 0:00:05]} Kc2 {[%emt 0:00:46]} 57. Ne3+ {[%emt 0:00:05]} 1/2-1/2

[Event "Mitropa Cup Women 2019"]
[Site "Radenci"]
[Date "2019.05.28"]
[Round "2.2"]
[White "Afraoui, Anaelle"]
[Black "Newrkla, Katharina"]
[Result "1-0"]
[ECO "B93"]
[WhiteElo "2068"]
[BlackElo "2190"]
[Annotator "ChessBase"]
[PlyCount "83"]
[EventDate "2019.05.27"]
[EventType "team-tourn"]
[EventCountry "SLO"]
[SourceTitle "playchess.com"]
[Source "ChessBase"]
[SourceQuality "1"]
[TimeControl "40/5400+30:1800+30"]

1. e4 {[%emt 0:00:00]} c5 {[%emt 0:00:00]} 2. Nf3 {[%emt 0:00:00]} d6 {[%emt 0:00:00]} 3. d4 {[%emt 0:00:00]} cxd4 {[%emt 0:00:00]} 4. Nxd4 {[%emt 0:00:00]} Nf6 {[%emt 0:00:00]} 5. Nc3 {[%emt 0:00:01]} a6 {[%emt 0:00:00]} 6. f4 {[%emt 0:00:09]} e5 {[%emt 0:00:11]} 7. Nf3 {[%emt 0:00:05]} Nbd7 {[%emt 0:00:09]} 8. a4 {[%emt 0:00:11]} Be7 {[%emt 0:02:40]} 9. Bc4 {[%emt 0:00:09]} O-O {[%emt 0:00:17]} 10. Qe2 {[%emt 0:00:04]} exf4 {[%emt 0:10:27]} 11. O-O {[%emt 0:09:02]} Ne5 {[%emt 0:08:18]} 12. Bb3 {[%emt 0:17:48]} Be6 {[%emt 0:04:58]} 13. Bxf4 {[%emt 0:02:22]} Nxf3+ {[%emt 0:11:38]} 14. Qxf3 {[%emt 0:00:26]} Bxb3 {[%emt 0:00:27]} 15. cxb3 {[%emt 0:00:08]} b5 {[%emt 0:08:31]} 16. Rad1 {[%emt 0:06:46]} Qb6+ {[%emt 0:02:49]} 17. Be3 {[%emt 0:03:00]} Qb7 {[%emt 0:01:50]} 18. Bd4 {[%emt 0:02:06]} b4 {[%emt 0:14:21]} 19. Nd5 {[%emt 0:01:58]} Nxd5 {[%emt 0:00:08]} 20. exd5 {[%emt 0:00:07]} Rae8 {[%emt 0:00:59]} 21. Qg4 {[%emt 0:08:58]} f6 {[%emt 0:03:25]} 22. Qe6+ {[%emt 0:02:58]} Rf7 {[%emt 0:03:42]} 23. Rc1 {[%emt 0:07:08]} Ra8 {[%emt 0:12:15]} 24. Rc6 {[%emt 0:10:56]} Bf8 {[%emt 0:00:34]} 25. Rb6 {[%emt 0:02:02]} Qe7 {[%emt 0:04:11]} 26. Rxb4 {[%emt 0:03:01]} Qxe6 {[%emt 0:00:23]} 27. dxe6 {[%emt 0:00:05]} Rc7 {[%emt 0:00:27]} 28. Re1 {[%emt 0:06:50]} Be7 {[%emt 0:04:48]} 29. Rb6 {[%emt 0:02:14]} h5 {[%emt 0:02:06]} 30. Kf2 {[%emt 0:03:50]} Rc2+ {[%emt 0:01:13]} 31. Re2 {[%emt 0:00:46]} Rc1 {[%emt 0:01:38]} 32. Rb7 {[%emt 0:03:03]} Kf8 {[%emt 0:00:13]} 33. b4 {[%emt 0:03:14]} Rc4 {[%emt 0:00:25]} 34. Ke3 {[%emt 0:02:03]} d5 {[%emt 0:01:40]} 35. b5 {[%emt 0:04:01]} Rxa4 {[%emt 0:01:27]} 36. Rc2 {[%emt 0:00:07]} Rc4 {[%emt 0:01:12]} 37. Rxc4 {[%emt 0:00:20]} dxc4 {[%emt 0:00:03]} 38. bxa6 {[%emt 0:00:06]} Rxa6 {[%emt 0:00:54]} 39. Rb8+ {[%emt 0:00:08]} Bd8 {[%emt 0:00:04]} 40. Rxd8+ {[%emt 0:00:00]} Ke7 {[%emt 0:00:00]} 41. Rd7+ {[%emt 0:01:11]} Kxe6 {[%emt 0:00:09]} 42. Rxg7 {[%emt 0:00:04]} 1-0

[Event "Mitropa Cup Women 2019"]
[Site "Radenci"]
[Date "2019.05.28"]
[Round "2.3"]
[White "Schloffer, Jasmin-Denise"]
[Black "Choisy, Mathilde"]
[Result "1/2-1/2"]
[ECO "B07"]
[WhiteElo "2133"]
[BlackElo "2113"]
[Annotator "ChessBase"]
[PlyCount "80"]
[EventDate "2019.05.27"]
[EventType "team-tourn"]
[EventCountry "SLO"]
[SourceTitle "playchess.com"]
[Source "ChessBase"]
[SourceQuality "1"]
[TimeControl "40/5400+30:1800+30"]

1. d4 {[%emt 0:00:00]} Nf6 {[%emt 0:00:00]} 2. Bf4 {[%emt 0:00:00]} d6 {[%emt 0:02:28]} 3. Nc3 {[%emt 0:00:00]} g6 {[%emt 0:04:52]} 4. e4 {[%emt 0:00:19]} Bg7 {[%emt 0:01:16]} 5. Qd2 {[%emt 0:00:17]} c6 {[%emt 0:07:31]} 6. Bh6 {[%emt 0:02:07]} Bxh6 {[%emt 0:00:30]} 7. Qxh6 {[%emt 0:00:08]} Qa5 {[%emt 0:00:44]} 8. Bd3 {[%emt 0:01:16]} b5 {[%emt 0:13:02]} 9. O-O-O {[%emt 0:06:24]} b4 {[%emt 0:03:06]} 10. Nb1 {[%emt 0:00:05]} Ba6 {[%emt 0:12:45]} 11. e5 {[%emt 0:12:13]} dxe5 {[%emt 0:03:16]} 12. dxe5 {[%emt 0:00:05]} Qxe5 {[%emt 0:02:34]} 13. Nf3 {[%emt 0:01:30]} Qh5 {[%emt 0:03:11]} 14. Qd2 {[%emt 0:05:01]} Bxd3 {[%emt 0:03:29]} 15. Qxd3 {[%emt 0:00:18]} O-O {[%emt 0:01:30]} 16. h3 {[%emt 0:03:36]} Nbd7 {[%emt 0:04:48]} 17. g4 {[%emt 0:05:22]} Qc5 {[%emt 0:00:09]} 18. g5 {[%emt 0:11:03]} Nd5 {[%emt 0:00:11]} 19. h4 {[%emt 0:00:59]} N7b6 {[%emt 0:06:23]} 20. Nd4 {[%emt 0:06:43]} e5 {[%emt 0:03:13]} 21. Nf3 {[%emt 0:08:22]} Rad8 {[%emt 0:08:52]} 22. Qe4 {[%emt 0:04:16]} Rfe8 {[%emt 0:08:17]} 23. h5 {[%emt 0:03:37]} Qc4 {[%emt 0:00:48]} 24. Qxc4 {[%emt 0:01:52]} Nxc4 {[%emt 0:00:04]} 25. hxg6 {[%emt 0:01:55]} fxg6 {[%emt 0:00:04]} 26. Nbd2 {[%emt 0:00:22]} Nxd2 {[%emt 0:00:52]} 27. Nxd2 {[%emt 0:00:16]} e4 {[%emt 0:05:15]} 28. Rh4 {[%emt 0:03:08]} e3 {[%emt 0:00:37]} 29. fxe3 {[%emt 0:00:05]} Rxe3 {[%emt 0:00:43]} 30. Ne4 {[%emt 0:04:05]} Re8 {[%emt 0:01:15]} 31. Rxd5 {[%emt 0:03:43]} R3xe4 {[%emt 0:00:50]} 32. Rxe4 {[%emt 0:00:25]} Rxe4 {[%emt 0:00:04]} 33. Rd8+ {[%emt 0:00:36]} Kf7 {[%emt 0:00:29]} 34. Rc8 {[%emt 0:00:06]} Re5 {[%emt 0:00:57]} 35. Rc7+ {[%emt 0:00:34]} Kg8 {[%emt 0:01:52]} 36. Rc8+ {[%emt 0:00:05]} Kg7 {[%emt 0:00:24]} 37. Rc7+ {[%emt 0:00:05]} Kg8 {[%emt 0:00:05]} 38. Rc8+ {[%emt 0:00:05]} Kf7 {[%emt 0:00:20]} 39. Rc7+ {[%emt 0:00:04]} Kg8 {[%emt 0:02:01]} 40. Rc8+ {[%emt 0:00:00]} Kf7 {[%emt 0:00:00]} 1/2-1/2

[Event "Mitropa Cup Women 2019"]
[Site "Radenci"]
[Date "2019.05.28"]
[Round "2.4"]
[White "Djidjeli, Sarah"]
[Black "Froewis, Annika"]
[Result "1/2-1/2"]
[ECO "C78"]
[WhiteElo "2012"]
[BlackElo "2089"]
[Annotator "NA"]
[PlyCount "106"]
[EventDate "2019.05.27"]
[EventType "team-tourn"]
[EventCountry "SLO"]
[SourceTitle "playchess.com"]
[Source "ChessBase"]
[SourceQuality "1"]
[TimeControl "40/5400+30:1800+30"]

1. e4 {[%emt 0:00:00]} e5 {[%emt 0:00:00]} 2. Nf3 {[%emt 0:00:00]} Nc6 {[%emt 0:00:00]} 3. Bb5 {[%emt 0:00:00]} a6 {[%emt 0:01:12]} 4. Ba4 {[%emt 0:00:00]} Nf6 {[%emt 0:00:18]} 5. O-O {[%emt 0:00:04]} b5 {[%emt 0:02:42]} 6. Bb3 {[%emt 0:00:07]} Bc5 {[%emt 0:00:05]} 7. c3 {[%emt 0:01:15]} d6 {[%emt 0:00:21]} 8. d4 {[%emt 0:00:26]} Bb6 {[%emt 0:00:14]} 9. a4 {[%emt 0:00:27]} Rb8 {[%emt 0:00:18]} 10. a5 {[%emt 0:00:39] C78: Ruy Lopez: Archangelsk and Möller Defences} Ba7 {[%emt 0:00:19]} 11. Be3 {[%emt 0:00:36]} Ra8 {[%emt 0:13:51]} 12. dxe5 {[%emt 0:12:53]} Nxe5 {[%emt 0:04:01]} 13. Nxe5 {[%emt 0:15:54]} dxe5 {[%emt 0:00:19]} 14. Qxd8+ {[%emt 0:22:52]} Kxd8 {[%emt 0:00:02]} 15. Bxa7 {[%emt 0:00:55]} Rxa7 {[%emt 0:00:03]} 16. Bxf7 {[%emt 0:00:22]} Nxe4 {[%emt 0:04:10] [#]} 17. Re1 $146 {[%emt 0:02:19]} ({Predecessor:} 17. Bd5 Nf6 {½-½ (60) Harikrishna,P (2730)-Maghsoodloo,P (2671) Malmo 2019}) 17... Bb7 {[%emt 0:23:51]} 18. Bh5 {[%emt 0:03:17]} Nc5 {[%emt 0:06:45]} 19. b4 {[%emt 0:05:44]} Nd7 {[%emt 0:09:43]} 20. Nd2 {[%emt 0:00:55]} Bd5 {[%emt 0:06:02]} 21. Rad1 {[%emt 0:03:29]} c6 {[%emt 0:02:34]} 22. Bg4 {[%emt 0:12:29]} Nf6 {[%emt 0:03:06]} 23. Bf5 {[%emt 0:01:48]} g6 {[%emt 0:02:16]} 24. Ne4 {[%emt 0:02:36]} Ke7 {[%emt 0:07:14]} 25. Nxf6 {[%emt 0:00:22]} Kxf6 {[%emt 0:00:02]} 26. Be4 {[%emt 0:00:19]} Rd7 {[%emt 0:00:32]} 27. Rd3 {[%emt 0:02:20]} Rhd8 {[%emt 0:00:22]} 28. Rf3+ {[%emt 0:00:24]} Ke6 {[%emt 0:02:33]} 29. Bxd5+ {[%emt 0:01:36]} Rxd5 {[%emt 0:01:32]} 30. Rfe3 {[%emt 0:00:20]} g5 {[%emt 0:01:49]} 31. Rh3 {[%emt 0:02:29]} Rd3 {[%emt 0:02:55]} 32. Rh6+ {[%emt 0:01:51]} Kd5 {[%emt 0:00:27]} 33. Kf1 {[%emt 0:00:42]} Rd2 {[%emt 0:02:21]} 34. Rxh7 {[%emt 0:05:35]} Kc4 {[%emt 0:00:19]} 35. Re3 {[%emt 0:01:00]} Rd1+ {[%emt 0:01:21]} 36. Ke2 {[%emt 0:00:16]} R1d2+ {[%emt 0:00:09]} 37. Kf1 {[%emt 0:00:13]} Rd1+ {[%emt 0:00:06]} 38. Ke2 {[%emt 0:00:05]} R1d2+ {[%emt 0:03:37]} 39. Kf3 {[%emt 0:01:18]} Rf8+ {[%emt 0:00:15]} 40. Ke4 {[%emt 0:00:00]} Rfxf2 {[%emt 0:00:00]} 41. Rh6 {[%emt 0:04:24]} c5 {[%emt 0:11:49]} 42. Rc6 {[%emt 0:05:55]} Rxg2 {[%emt 0:02:07]} 43. Rxc5+ {[%emt 0:00:15]} Kb3 {[%emt 0:00:04]} 44. Rxe5 {[%emt 0:00:30]} Rxh2 {[%emt 0:02:29]} 45. Rxg5 {[%emt 0:11:48]} Rh4+ {[%emt 0:06:12]} 46. Ke5 {[%emt 0:00:34]} Rh6 {[%emt 0:02:44]} 47. Ke4 {[%emt 0:03:52]} Re6+ {[%emt 0:01:31]} 48. Re5 {[%emt 0:00:30]} Rc6 {[%emt 0:02:13]} 49. Rd5 {[%emt 0:03:20] [#]} Re6+ {[%emt 0:04:34]} 50. Re5 {[%emt 0:00:14]} Rc6 {[%emt 0:00:18]} 51. Rd5 {[%emt 0:00:07] [#]} Re6+ {[%emt 0:00:14]} 52. Re5 $11 {[%emt 0:00:12]} Rc6 {[%emt 0:00:39]} 53. Rd5 {[%emt 0:00:22]} Rc2 $1 $17 1/2-1/2

[Event "Mitropa Cup Women 2019"]
[Site "Radenci"]
[Date "2019.05.28"]
[Round "2.5"]
[White "Georgescu, Lena"]
[Black "Medic, Mirjana"]
[Result "1-0"]
[ECO "C14"]
[WhiteElo "2191"]
[BlackElo "2253"]
[Annotator "ChessBase"]
[PlyCount "85"]
[EventDate "2019.05.27"]
[EventType "team-tourn"]
[EventCountry "SLO"]
[SourceTitle "playchess.com"]
[Source "ChessBase"]
[SourceQuality "1"]
[TimeControl "40/5400+30:1800+30"]

1. e4 {[%emt 0:00:00]} e6 {[%emt 0:00:00]} 2. d4 {[%emt 0:00:00]} d5 {[%emt 0:00:00]} 3. Nc3 {[%emt 0:00:00]} Nf6 {[%emt 0:00:05]} 4. Bg5 {[%emt 0:00:00]} Be7 {[%emt 0:00:07]} 5. e5 {[%emt 0:00:00]} Nfd7 {[%emt 0:00:04]} 6. h4 {[%emt 0:00:00]} h6 {[%emt 0:00:31]} 7. Be3 {[%emt 0:00:00]} c5 {[%emt 0:00:45]} 8. Qg4 {[%emt 0:00:18]} g6 {[%emt 0:00:08]} 9. Nf3 {[%emt 0:00:10]} cxd4 {[%emt 0:02:48]} 10. Nxd4 {[%emt 0:00:32]} Nc6 {[%emt 0:08:06]} 11. f4 {[%emt 0:20:42]} a6 {[%emt 0:07:14]} 12. O-O-O {[%emt 0:07:20]} Nc5 {[%emt 0:07:17]} 13. h5 {[%emt 0:04:16]} Nxd4 {[%emt 0:11:09]} 14. Bxd4 {[%emt 0:06:18]} g5 {[%emt 0:03:59]} 15. Kb1 {[%emt 0:09:20]} Rg8 {[%emt 0:06:19]} 16. Be2 {[%emt 0:07:14]} Bd7 {[%emt 0:02:34]} 17. fxg5 {[%emt 0:07:30]} Rxg5 {[%emt 0:00:42]} 18. Qf4 {[%emt 0:02:40]} Qc7 {[%emt 0:01:52]} 19. Rhf1 {[%emt 0:00:45]} f5 {[%emt 0:07:34]} 20. exf6 {[%emt 0:06:52]} Qxf4 {[%emt 0:15:53]} 21. Rxf4 {[%emt 0:00:02]} Bd6 {[%emt 0:00:19]} 22. f7+ {[%emt 0:03:11]} Kf8 {[%emt 0:00:42]} 23. Rf6 {[%emt 0:00:36]} Rc8 {[%emt 0:07:43]} 24. Rdf1 {[%emt 0:08:57]} Be5 {[%emt 0:00:36]} 25. Bxe5 {[%emt 0:01:21]} Rxe5 {[%emt 0:00:02]} 26. Rxh6 {[%emt 0:01:33]} Ke7 {[%emt 0:00:58]} 27. Rhf6 {[%emt 0:10:23]} Rf8 {[%emt 0:00:02]} 28. R6f4 {[%emt 0:00:39]} Bc6 {[%emt 0:01:33]} 29. g4 {[%emt 0:01:43]} d4 {[%emt 0:01:50]} 30. Rxd4 {[%emt 0:00:18]} Rxf7 {[%emt 0:00:02]} 31. Rxf7+ {[%emt 0:01:28]} Kxf7 {[%emt 0:00:02]} 32. Rf4+ {[%emt 0:00:33]} Kg7 {[%emt 0:00:10]} 33. b3 {[%emt 0:00:46]} Rg5 {[%emt 0:01:13]} 34. Kb2 {[%emt 0:00:31]} e5 {[%emt 0:00:09]} 35. Rf1 {[%emt 0:00:47]} Ne6 {[%emt 0:03:25]} 36. Rg1 {[%emt 0:00:39]} Nf4 {[%emt 0:00:21]} 37. Re1 {[%emt 0:00:33]} Nxe2 {[%emt 0:02:37]} 38. Rxe2 {[%emt 0:00:01]} Bf3 {[%emt 0:00:10]} 39. Re3 {[%emt 0:00:20]} Bxg4 {[%emt 0:00:09]} 40. Ne4 {[%emt 0:00:00]} Rxh5 {[%emt 0:00:00]} 41. Rg3 {[%emt 0:02:04]} Rh4 {[%emt 0:04:19]} 42. Nf2 {[%emt 0:00:13]} Kf7 {[%emt 0:00:59]} 43. Rxg4 {[%emt 0:01:56]} 1-0

[Event "Mitropa Cup Women 2019"]
[Site "Radenci"]
[Date "2019.05.28"]
[Round "2.6"]
[White "Cvitan, Ena"]
[Black "Hund, Barbara"]
[Result "1-0"]
[ECO "E41"]
[WhiteElo "2132"]
[BlackElo "2127"]
[Annotator "ChessBase"]
[PlyCount "116"]
[EventDate "2019.05.27"]
[EventType "team-tourn"]
[EventCountry "SLO"]
[SourceTitle "playchess.com"]
[Source "ChessBase"]
[SourceQuality "1"]
[TimeControl "40/5400+30:1800+30"]

1. d4 {[%emt 0:01:59]} Nf6 {[%emt 0:00:00]} 2. c4 {[%emt 0:00:05]} e6 {[%emt 0:00:00]} 3. Nc3 {[%emt 0:00:11]} Bb4 {[%emt 0:00:13]} 4. e3 {[%emt 0:00:05]} O-O {[%emt 0:00:44]} 5. Bd3 {[%emt 0:00:24]} c5 {[%emt 0:01:12]} 6. Nge2 {[%emt 0:00:17]} d6 {[%emt 0:01:07]} 7. O-O {[%emt 0:13:03]} Nc6 {[%emt 0:03:23]} 8. Bd2 {[%emt 0:02:46]} e5 {[%emt 0:06:59]} 9. d5 {[%emt 0:02:07]} Ne7 {[%emt 0:00:21]} 10. Qc2 {[%emt 0:00:40]} Ng6 {[%emt 0:04:43]} 11. Ng3 {[%emt 0:08:09]} a6 {[%emt 0:06:11]} 12. a3 {[%emt 0:03:15]} Bxc3 {[%emt 0:11:21]} 13. Bxc3 {[%emt 0:00:14]} Bd7 {[%emt 0:01:08]} 14. h3 {[%emt 0:00:30]} b5 {[%emt 0:04:47]} 15. b3 {[%emt 0:00:16]} Rb8 {[%emt 0:07:01]} 16. f4 {[%emt 0:05:44]} exf4 {[%emt 0:05:05]} 17. exf4 {[%emt 0:00:25]} bxc4 {[%emt 0:08:18]} 18. bxc4 {[%emt 0:00:31]} Re8 {[%emt 0:01:53]} 19. Qd2 {[%emt 0:20:30]} Nf8 {[%emt 0:04:48]} 20. Bc2 {[%emt 0:07:10]} h6 {[%emt 0:03:02]} 21. Rae1 {[%emt 0:03:20]} Rxe1 {[%emt 0:03:00]} 22. Rxe1 {[%emt 0:00:19]} N8h7 {[%emt 0:04:12]} 23. Qd3 {[%emt 0:02:38]} Nf8 {[%emt 0:01:30]} 24. Qf3 {[%emt 0:03:52]} Bc8 {[%emt 0:03:42]} 25. Nf1 {[%emt 0:01:48]} N6h7 {[%emt 0:03:13]} 26. g4 {[%emt 0:05:43]} Rb7 {[%emt 0:02:26]} 27. Ng3 {[%emt 0:05:11]} Re7 {[%emt 0:01:56]} 28. Rxe7 {[%emt 0:02:28]} Qxe7 {[%emt 0:00:07]} 29. Qe4 {[%emt 0:00:19]} Qh4 {[%emt 0:02:21]} 30. Kg2 {[%emt 0:00:50]} Bd7 {[%emt 0:00:25]} 31. Qe3 {[%emt 0:05:21]} Qd8 {[%emt 0:02:52]} 32. Nh5 {[%emt 0:01:59]} f6 {[%emt 0:01:50]} 33. Ng3 {[%emt 0:02:20]} Be8 {[%emt 0:02:09]} 34. Nf5 {[%emt 0:00:38]} h5 {[%emt 0:02:47]} 35. Qe7 {[%emt 0:00:41]} Qxe7 {[%emt 0:00:41]} 36. Nxe7+ {[%emt 0:00:02]} Kh8 {[%emt 0:00:16]} 37. gxh5 {[%emt 0:01:36]} Bxh5 {[%emt 0:00:42]} 38. Nc8 {[%emt 0:00:13]} Be2 {[%emt 0:00:49]} 39. Nxd6 {[%emt 0:00:10]} Nd7 {[%emt 0:00:08]} 40. Kf2 {[%emt 0:00:00]} Bh5 {[%emt 0:00:00]} 41. Ba4 {[%emt 0:05:30]} Nhf8 {[%emt 0:03:06]} 42. Ba5 {[%emt 0:06:22]} g5 {[%emt 0:02:09]} 43. fxg5 {[%emt 0:06:07]} fxg5 {[%emt 0:00:08]} 44. Ne4 {[%emt 0:00:52]} g4 {[%emt 0:03:01]} 45. Ng3 {[%emt 0:04:33]} Bg6 {[%emt 0:02:23]} 46. hxg4 {[%emt 0:00:01]} Bd3 {[%emt 0:00:56]} 47. Bb3 {[%emt 0:00:37]} Ne5 {[%emt 0:04:53]} 48. Bc3 {[%emt 0:00:32]} Nfd7 {[%emt 0:00:10]} 49. Nf5 {[%emt 0:02:31]} Kg8 {[%emt 0:05:22]} 50. Ne3 {[%emt 0:00:11]} Kf7 {[%emt 0:00:50]} 51. Kg3 {[%emt 0:01:15]} Ng6 {[%emt 0:02:39]} 52. Kf3 {[%emt 0:03:48]} Nb6 {[%emt 0:02:56]} 53. Nf5 {[%emt 0:02:46]} Nc8 {[%emt 0:01:25]} 54. Ke3 {[%emt 0:02:07]} Bxf5 {[%emt 0:04:47]} 55. gxf5 {[%emt 0:00:01]} Nge7 {[%emt 0:00:12]} 56. Kf4 {[%emt 0:00:46]} Nd6 {[%emt 0:00:43]} 57. Be5 {[%emt 0:01:28]} Nec8 {[%emt 0:01:01]} 58. Bxd6 {[%emt 0:00:37]} Nxd6 {[%emt 0:00:07] Ke4} 1-0

[Event "Mitropa Cup Women 2019"]
[Site "Radenci"]
[Date "2019.05.28"]
[Round "2.7"]
[White "Hund, Sarah"]
[Black "Blazeka, Mihaela"]
[Result "1-0"]
[ECO "C54"]
[WhiteElo "2016"]
[BlackElo "2118"]
[Annotator "ChessBase"]
[PlyCount "73"]
[EventDate "2019.05.27"]
[EventType "team-tourn"]
[EventCountry "SLO"]
[SourceTitle "playchess.com"]
[Source "ChessBase"]
[SourceQuality "1"]
[TimeControl "40/5400+30:1800+30"]

1. e4 {[%emt 0:00:00]} e5 {[%emt 0:02:00]} 2. Nf3 {[%emt 0:00:00]} Nc6 {[%emt 0:00:12]} 3. Bc4 {[%emt 0:00:00]} Bc5 {[%emt 0:00:11]} 4. d3 {[%emt 0:00:23]} Nf6 {[%emt 0:00:18]} 5. O-O {[%emt 0:00:30]} O-O {[%emt 0:00:21]} 6. Bg5 {[%emt 0:00:37]} d6 {[%emt 0:03:09]} 7. c3 {[%emt 0:01:32]} Bg4 {[%emt 0:04:16]} 8. Nbd2 {[%emt 0:02:31]} a6 {[%emt 0:00:24]} 9. Bb3 {[%emt 0:01:20]} Qe7 {[%emt 0:06:19]} 10. h3 {[%emt 0:04:38]} Bd7 {[%emt 0:11:57]} 11. Re1 {[%emt 0:05:09]} Ba7 {[%emt 0:09:03]} 12. Nc4 {[%emt 0:08:05]} h6 {[%emt 0:14:46]} 13. Bh4 {[%emt 0:07:34]} g5 {[%emt 0:02:29]} 14. Bg3 {[%emt 0:02:06]} Nh5 {[%emt 0:00:26]} 15. Bh2 {[%emt 0:03:18]} Nf4 {[%emt 0:00:14]} 16. d4 {[%emt 0:03:22]} Rad8 {[%emt 0:06:56]} 17. Ne3 {[%emt 0:04:33]} exd4 {[%emt 0:20:06]} 18. cxd4 {[%emt 0:04:49]} Qxe4 {[%emt 0:01:07]} 19. Bc2 {[%emt 0:01:43]} Qe6 {[%emt 0:04:42]} 20. Bxf4 {[%emt 0:15:30]} gxf4 {[%emt 0:00:20]} 21. Ng4 {[%emt 0:00:57]} Qc4 {[%emt 0:01:07]} 22. b3 {[%emt 0:07:40]} Qb5 {[%emt 0:02:56]} 23. Nxh6+ {[%emt 0:04:29]} Kg7 {[%emt 0:00:21]} 24. Ng4 {[%emt 0:01:59]} Qh5 {[%emt 0:01:45]} 25. Ngh2 {[%emt 0:02:20]} Rg8 {[%emt 0:01:49]} 26. Kh1 {[%emt 0:01:45]} f6 {[%emt 0:02:16]} 27. Qd2 {[%emt 0:01:00]} Qh6 {[%emt 0:00:41]} 28. Re4 {[%emt 0:00:54]} Bf5 {[%emt 0:00:35]} 29. Rxf4 {[%emt 0:01:12]} Bxc2 {[%emt 0:00:12]} 30. Ng4 {[%emt 0:01:35]} Qh7 {[%emt 0:01:36]} 31. Rxf6 {[%emt 0:02:24]} Bg6 {[%emt 0:00:22]} 32. Ng5 {[%emt 0:01:51]} Qh4 {[%emt 0:01:25]} 33. Ne6+ {[%emt 0:03:20]} Kh7 {[%emt 0:00:08]} 34. Nxd8 {[%emt 0:00:17]} Rxd8 {[%emt 0:00:14]} 35. Rf4 {[%emt 0:02:37]} Kg7 {[%emt 0:01:13]} 36. d5 {[%emt 0:00:51]} Ne7 {[%emt 0:00:43]} 37. Qc3+ {[%emt 0:00:22]} 1-0